bitfinex/quotes_BTCUSD_20230907
["timestamp","ask_amount","ask_price","bid_price","bid_amount"]
[1694104763537,3.03992333,25883.0,25882.0,0.0609381]
[1694104763948,3.04172333,25883.0,25882.0,0.0609381]
[1694104764394,3.04154333,25883.0,25882.0,0.0609381]
[1694104764871,3.04040333,25883.0,25882.0,0.0609381]
[1694104765061,2.97482333,25883.0,25882.0,0.0609381]
[1694104765489,3.04028333,25883.0,25882.0,0.0609381]
[1694104765709,3.04730333,25883.0,25882.0,0.0609381]
[1694104765937,3.04586333,25883.0,25882.0,0.0609381]
[1694104766156,3.04718333,25883.0,25882.0,0.0609381]
[1694104766379,3.04712333,25883.0,25882.0,0.0609381]
[1694104766608,2.82727422,25883.0,25882.0,0.0609381]
[1694104766827,2.75467422,25883.0,25882.0,0.0609381]
[1694104767051,1.98196722,25883.0,25882.0,0.0609381]
[1694104767266,1.20926022,25883.0,25882.0,0.0609381]
[1694104769964,1.98196722,25883.0,25882.0,0.0609381]
[1694104770178,1.20926022,25883.0,25882.0,0.0609381]
[1694104772481,0.43655322,25883.0,25882.0,0.0609381]
[1694104772684,0.43655322,25883.0,25882.0,0.8336751]
[1694104773596,0.048,25883.0,25882.0,1.7261121]
[1694104774904,0.048,25883.0,25882.0,0.9533751]
[1694104776375,0.048,25883.0,25882.0,0.1806381]
[1694104776615,0.048,25883.0,25882.0,3.61293701]
[1694104778063,0.048,25883.0,25882.0,1.29472601]
[1694104779262,0.048,25883.0,25882.0,2.06746301]
[1694104781036,0.820707,25883.0,25882.0,1.29472601]
[1694104781696,1.41857296,25883.0,25882.0,1.17502601]
[1694104781916,2.96398696,25883.0,25882.0,0.0609381]
[1694104782841,3.02956696,25883.0,25882.0,0.0609381]
[1694104783053,2.96398696,25883.0,25882.0,0.0609381]
[1694104783500,3.03040696,25883.0,25882.0,0.0609381]
[1694104783769,3.03016696,25883.0,25882.0,0.0609381]
[1694104783980,3.02992696,25883.0,25882.0,0.0609381]
[1694104784201,2.96398696,25883.0,25882.0,0.0609381]
[1694104784423,3.02992696,25883.0,25882.0,0.0609381]
[1694104784647,3.03814696,25883.0,25882.0,0.0609381]
[1694104784838,3.03748696,25883.0,25882.0,0.0609381]
[1694104785054,3.03334696,25883.0,25882.0,0.0609381]
[1694104785275,3.03016696,25883.0,25882.0,0.0609381]
[1694104785490,3.03010696,25883.0,25882.0,0.0609381]
[1694104785702,3.02998696,25883.0,25882.0,0.0609381]
[1694104785914,3.03004696,25883.0,25882.0,0.0609381]
[1694104786124,3.03022696,25883.0,25882.0,0.0609381]
[1694104786339,3.03136696,25883.0,25882.0,0.0609381]
[1694104786577,3.03862696,25883.0,25882.0,0.0609381]
[1694104786792,3.04246696,25883.0,25882.0,0.0609381]
[1694104786995,3.04180696,25883.0,25882.0,0.0609381]
[1694104787204,3.04084696,25883.0,25882.0,0.0609381]
[1694104787462,3.03796696,25883.0,25882.0,0.0609381]
[1694104787682,3.03670696,25883.0,25882.0,0.0609381]
[1694104787899,3.03736696,25883.0,25882.0,0.0609381]
[1694104788109,3.04294696,25883.0,25882.0,0.0609381]
[1694104788278,3.04288696,25883.0,25882.0,0.0609381]
[1694104788482,3.03928696,25883.0,25882.0,0.0609381]
[1694104788712,3.1306884,25883.0,25882.0,0.0609381]
[1694104788913,3.1324284,25883.0,25882.0,0.0609381]
[1694104789064,3.1316484,25883.0,25882.0,0.0609381]
[1694104789265,3.1327284,25883.0,25882.0,0.0609381]
[1694104789586,3.20806603,25883.0,25882.0,0.0609381]
[1694104789808,3.34694051,25883.0,25882.0,0.0609381]
[1694104790023,3.19552288,25883.0,25882.0,0.0609381]
[1694104790601,3.0564684,25883.0,25882.0,0.0609381]
[1694104790800,3.10304144,25883.0,25882.0,0.0609381]
[1694104791735,3.14943117,25883.0,25882.0,0.0609381]
[1694104792131,3.17629684,25883.0,25882.0,0.0609381]
[1694104792350,3.55391267,25883.0,25882.0,0.0609381]
[1694104792610,3.55439267,25883.0,25882.0,0.0609381]
[1694104792848,3.34367147,25883.0,25882.0,0.0609381]
[1694104793072,3.34367147,25883.0,25882.0,0.00260749]
[1694104793073,3.1162559,25883.0,25882.0,0.00260749]
[1694104793305,3.1213559,25883.0,25882.0,0.00260749]
[1694104793536,3.5278759,25883.0,25882.0,0.00260749]
[1694104793751,4.06430882,25883.0,25882.0,0.00260749]
[1694104793971,4.34239152,25883.0,25882.0,0.00260749]
[1694104794185,4.20145152,25883.0,25882.0,0.00260749]
[1694104794401,4.33351152,25883.0,25882.0,0.00260749]
[1694104794594,4.20073152,25883.0,25882.0,0.00260749]
[1694104794802,4.20061152,25883.0,25882.0,0.00260749]
[1694104795010,4.20055152,25883.0,25882.0,0.00260749]
[1694104795430,4.20019152,25883.0,25882.0,0.00260749]
[1694104795559,4.19881152,25883.0,25882.0,0.00260749]
[1694104795768,4.03311323,25883.0,25882.0,0.00260749]
[1694104795968,4.03287323,25883.0,25882.0,0.00260749]
[1694104796188,4.16637323,25883.0,25882.0,0.00260749]
[1694104796413,3.83405769,25883.0,25882.0,0.00260749]
[1694104796619,3.99794776,25883.0,25882.0,0.00260749]
[1694104796839,3.98948776,25883.0,25882.0,0.00260749]
[1694104797050,3.98678776,25883.0,25882.0,0.00260749]
[1694104797262,3.98696776,25883.0,25882.0,0.00260749]
[1694104797476,3.98690776,25883.0,25882.0,0.00260749]
[1694104797733,3.98924776,25883.0,25882.0,0.00260749]
[1694104797935,3.98954776,25883.0,25882.0,0.00260749]
[1694104798155,3.98846776,25883.0,25882.0,0.00260749]
[1694104798363,3.98678776,25883.0,25882.0,0.00260749]
[1694104798569,3.98522776,25883.0,25882.0,0.00260749]
[1694104799018,4.0974144,25883.0,25882.0,0.00260749]
[1694104799217,4.0981344,25883.0,25882.0,0.00260749]
[1694104799329,4.0983744,25883.0,25882.0,0.00260749]
[1694104799527,4.0984944,25883.0,25882.0,0.00260749]
[1694104799753,3.88733034,25883.0,25882.0,0.00260749]
[1694104799964,3.88739034,25883.0,25882.0,0.00260749]
[1694104800167,3.46161008,25883.0,25882.0,0.00260749]
[1694104800383,3.46161008,25883.0,25882.0,1.6064121]
[1694104800384,0.0748672,25883.0,25882.0,1.6064121]
[1694104800616,0.233464,25883.0,25882.0,2.4988491]
[1694104800833,0.49216121,25883.0,25882.0,1.6064121]
[1694104801047,0.49216121,25883.0,25882.0,0.8336751]
[1694104801048,0.30669721,25883.0,25882.0,0.8336751]
[1694104801265,0.69525043,25883.0,25882.0,0.0609381]
[1694104801486,2.24066443,25883.0,25882.0,0.0609381]
[1694104801694,1.23612742,25883.0,25882.0,0.0609381]
[1694104802146,1.44395324,25883.0,25882.0,0.0599381]
[1694104802578,1.23612742,25883.0,25882.0,0.0609381]
[1694104802817,0.43942042,25883.0,25882.0,0.0599381]
[1694104803280,0.695243,25883.0,25882.0,0.0609381]
[1694104803494,0.8566938,25883.0,25882.0,0.8326751]
[1694104803703,0.260318,25883.0,25882.0,2.3791491]
[1694104803913,0.25942231,25883.0,25882.0,2.3791491]
[1694104805182,0.25942231,25883.0,25882.0,1.6064121]
[1694104807306,0.25942231,25883.0,25882.0,0.8336751]
[1694104807541,0.25885882,25883.0,25882.0,0.0609381]
[1694104807792,0.2334508,25883.0,25882.0,0.0609381]
[1694104808088,2.2661281,25883.0,25882.0,0.0609381]
[1694104808319,2.49789895,25883.0,25882.0,0.0609381]
[1694104812022,2.50297847,25883.0,25882.0,0.0609381]
[1694104814307,1.73027147,25883.0,25882.0,0.0609381]
[1694104815772,0.95756447,25883.0,25882.0,0.0609381]
[1694104816195,1.14296468,25883.0,25882.0,0.0609381]
[1694104817052,0.88437733,25883.0,25882.0,0.8336751]
[1694104818738,0.65260648,25883.0,25882.0,0.8336751]
[1694104819585,2.45211187,25883.0,25882.0,0.0609381]
[1694104821699,3.01604802,25883.0,25882.0,0.0609381]
[1694104821973,3.08186802,25883.0,25882.0,0.0609381]
[1694104822202,3.08132802,25883.0,25882.0,0.0609381]
[1694104822440,3.08108802,25883.0,25882.0,0.0609381]
[1694104822650,3.01604802,25883.0,25882.0,0.0609381]
[1694104823097,2.47509305,25883.0,25882.0,0.0609381]
[1694104823317,0.90667905,25883.0,25882.0,0.8336751]
[1694104823529,0.88435333,25883.0,25882.0,1.6064121]
[1694104824113,0.6989583,25883.0,25882.0,1.6064121]
[1694104824324,0.6989583,25883.0,25882.0,0.8336751]
[1694104825259,0.88435495,25883.0,25882.0,0.8336751]
[1694104825469,0.6989583,25883.0,25882.0,0.8336751]
[1694104826516,0.88435552,25883.0,25882.0,0.8336751]
[1694104827020,0.65260349,25883.0,25882.0,1.6064121]
[1694104829286,0.6989583,25883.0,25882.0,1.6064121]
[1694104829715,0.88434642,25883.0,25882.0,1.6064121]
[1694104830091,0.6989583,25883.0,25882.0,1.6064121]
[1694104830301,0.37749955,25883.0,25882.0,1.6064121]
[1694104830524,0.23846364,25883.0,25882.0,1.6064121]
[1694104830730,0.26447052,25883.0,25882.0,1.6064121]
[1694104832103,0.2866918,25883.0,25882.0,1.6064121]
[1694104832969,0.39971654,25883.0,25882.0,1.6064121]
[1694104833788,0.26068492,25883.0,25882.0,1.6064121]
[1694104834912,0.39971328,25883.0,25882.0,1.6064121]
[1694104835097,0.21432916,25883.0,25882.0,1.6064121]
[1694104836913,0.21432916,25883.0,25882.0,0.8336751]
[1694104839114,0.21432916,25883.0,25882.0,1.6064121]
[1694104839728,0.39971328,25883.0,25882.0,1.6064121]
[1694104839956,0.21432916,25883.0,25882.0,1.6064121]
[1694104840607,0.39971328,25883.0,25882.0,1.6064121]
[1694104841557,0.26068492,25883.0,25882.0,1.6064121]
[1694104842807,0.28664165,25883.0,25882.0,1.6064121]
[1694104843592,0.51839368,25883.0,25882.0,1.6064121]
[1694104843806,0.28664165,25883.0,25882.0,1.6064121]
[1694104844813,0.51839368,25883.0,25882.0,0.8336751]
[1694104845668,0.33300956,25883.0,25882.0,0.8336751]
[1694104850480,1.545365,25884.0,25883.0,1.72532105]
[1694104850654,1.93391822,25884.0,25883.0,1.72532105]
[1694104852035,1.95791822,25884.0,25883.0,1.72732105]
[1694104852234,1.98191822,25884.0,25883.0,1.72932105]
[1694104852501,2.00538767,25884.0,25883.0,1.72932105]
[1694104856673,0.30339727,25884.0,25883.0,4.04744205]
[1694104856902,0.1642369,25884.0,25883.0,4.16714205]
[1694104857340,0.21062982,25884.0,25883.0,4.16714205]
[1694104857556,0.16423756,25884.0,25883.0,4.16714205]
[1694104858638,0.14023756,25884.0,25883.0,4.16514205]
[1694104858856,0.06146945,25884.0,25883.0,4.16614205]
[1694104859067,0.02346945,25884.0,25883.0,4.16314205]
[1694104859490,0.04646945,25884.0,25883.0,4.16614205]
[1694104863428,0.04646945,25884.0,25883.0,5.32740227]
[1694104863647,0.02846945,25884.0,25883.0,5.34540227]
[1694104864139,0.23192848,25888.0,25883.0,6.45824868]
[1694104864358,0.23192848,25887.0,25886.0,0.05833061]
[1694104864579,0.23192848,25887.0,25886.0,1.72324761]
[1694104864795,0.11586748,25887.0,25886.0,1.7238857]
[1694104865012,0.11586748,25887.0,25886.0,0.1786687]
[1694104865260,0.11586748,25887.0,25886.0,1.7239047]
[1694104865708,0.13386748,25887.0,25886.0,1.7259047]
[1694104865919,0.04609937,25887.0,25886.0,2.4995227]
[1694104867220,0.04609937,25887.0,25886.0,0.9542867]
[1694104867434,0.04609937,25887.0,25886.0,1.7269047]
[1694104870903,0.04609937,25887.0,25886.0,1.7119047]
[1694104872969,0.04609937,25887.0,25886.0,2.4845227]
[1694104873191,0.04609937,25887.0,25886.0,2.4695227]
[1694104876671,0.04609937,25887.0,25886.0,1.6869047]
[1694104878454,0.04609937,25887.0,25886.0,1.6769047]
[1694104878931,0.04609937,25887.0,25886.0,1.5572047]
[1694104879814,0.04609937,25887.0,25886.0,0.7845867]
[1694104880014,0.04609937,25887.0,25886.0,1.5572047]
[1694104880591,0.922872,25891.0,25886.0,1.5572047]
[1694104880836,0.02358844,25887.0,25886.0,2.3298227]
[1694104881065,0.1504,25891.0,25886.0,2.4495227]
[1694104881229,1.30542662,25893.0,25889.0,0.772528]
[1694104881461,1.2327999,25892.0,25889.0,0.772528]
[1694104881695,0.022,25891.0,25889.0,0.772528]
[1694104881872,0.022,25891.0,25890.0,0.00063581]
[1694104882112,1.16099222,25892.0,25890.0,0.00063581]
[1694104882277,0.38855322,25892.0,25890.0,0.12033581]
[1694104882560,0.38855322,25892.0,25891.0,0.00833061]
[1694104882801,0.024,25893.0,25892.0,1.57320861]
[1694104883237,1.37053175,25900.0,25897.0,0.00833061]
[1694104883238,0.1532,25899.0,25897.0,0.00833061]
[1694104883243,0.36615905,25899.0,25897.0,0.00833061]
[1694104883489,0.21395905,25899.0,25898.0,0.1197]
[1694104883758,0.21395905,25899.0,25897.0,0.00833061]
[1694104885026,0.015,25899.0,25897.0,1.55390661]
[1694104885231,0.015,25899.0,25897.0,0.78161661]
[1694104885440,0.015,25899.0,25897.0,0.00933061]
[1694104885902,0.035,25899.0,25898.0,0.00063134]
[1694104886749,0.035,25899.0,25898.0,1.66485134]
[1694104886965,0.035,25899.0,25898.0,0.12033134]
[1694104887137,0.035,25899.0,25898.0,0.00063134]
[1694104887354,0.015,25899.0,25898.0,0.00063134]
[1694104887558,0.035,25899.0,25898.0,0.00263134]
[1694104887717,0.021,25899.0,25898.0,0.00263134]
[1694104888300,0.035,25899.0,25898.0,0.00363134]
[1694104891282,0.035,25899.0,25898.0,1.54815134]
[1694104892291,0.035,25899.0,25898.0,2.44844195]
[1694104893045,0.03034119,25899.0,25898.0,2.56814195]
[1694104893254,0.03034119,25899.0,25898.0,2.44844195]
[1694104894102,0.00634119,25899.0,25898.0,2.44744195]
[1694104894313,0.00634119,25899.0,25898.0,1.55948195]
[1694104894535,0.03529608,25899.0,25898.0,1.55348195]
[1694104894751,0.03529608,25899.0,25898.0,2.32574195]
[1694104894960,0.03729608,25899.0,25898.0,2.35274195]
[1694104895168,0.03529608,25899.0,25898.0,2.32874195]
[1694104895394,0.03529608,25899.0,25898.0,2.32574195]
[1694104895700,0.03729608,25899.0,25898.0,2.37474195]
[1694104897092,0.03729608,25899.0,25898.0,2.49444195]
[1694104903352,0.03729608,25899.0,25898.0,2.37474195]
[1694104904171,0.03729608,25899.0,25898.0,1.60248195]
[1694104904401,0.03729608,25899.0,25898.0,2.37474195]
[1694104905914,0.03729608,25899.0,25898.0,2.36974195]
[1694104906708,0.03729608,25899.0,25898.0,2.37031153]
[1694104908721,0.03729608,25899.0,25898.0,2.49001153]
[1694104913585,0.14409771,25901.0,25898.0,2.49001153]
[1694104913600,0.03232449,25899.0,25898.0,2.48010127]
[1694104914075,0.38855322,25900.0,25898.0,2.48010127]
[1694104914315,0.38855322,25900.0,25898.0,2.36040127]
[1694104915208,0.38855322,25900.0,25898.0,2.33640127]
[1694104915649,0.39055322,25900.0,25898.0,2.36040127]
[1694104916263,0.39055322,25900.0,25898.0,2.33540127]
[1694104916471,0.39055322,25900.0,25898.0,2.35540127]
[1694104920096,0.39055322,25900.0,25898.0,1.58314127]
[1694104920101,0.39055322,25900.0,25898.0,2.35540127]
[1694104921002,0.03211333,25899.0,25898.0,2.35540127]
[1694104921490,0.03211333,25899.0,25898.0,2.47510127]
[1694104922255,0.002,25900.0,25898.0,2.47510127]
[1694104922540,0.002,25900.0,25899.0,0.1197]
[1694104922777,0.002,25900.0,25899.0,2.31669]
[1694104923274,0.1854,25902.0,25899.0,2.31669]
[1694104923522,0.57395322,25902.0,25899.0,2.31669]
[1694104923749,0.57395322,25902.0,25900.0,0.00053819]
[1694104923987,0.57395322,25902.0,25901.0,1.54434]
[1694104924464,0.40835322,25902.0,25901.0,1.54434]
[1694104924712,0.40835322,25902.0,25901.0,2.31651]
[1694104925196,0.53264854,25902.0,25900.0,1.54489919]
[1694104925449,0.38855322,25901.0,25900.0,2.31707919]
[1694104926854,0.38855322,25901.0,25900.0,2.32007919]
[1694104927565,0.42067826,25901.0,25900.0,2.32007919]
[1694104927794,0.42167826,25901.0,25900.0,2.33307919]
[1694104931250,0.03312504,25901.0,25900.0,2.33307919]
[1694104937489,0.03312504,25901.0,25900.0,0.01653819]
[1694104937490,0.85095597,25901.0,25900.0,0.01653819]
[1694104937713,3.2547291,25901.0,25900.0,0.01653819]
[1694104937971,0.4076,25898.0,25891.0,0.09155389]
[1694104938221,0.1197,25895.0,25894.0,0.7]
[1694104938418,0.66367451,25895.0,25894.0,0.7]
[1694104938643,0.59189322,25895.0,25892.0,0.772435]
[1694104938855,0.35720129,25895.0,25894.0,0.00041739]
[1694104939072,0.50825322,25895.0,25894.0,0.00041739]
[1694104939227,0.38855322,25895.0,25894.0,0.00041739]
[1694104939474,0.46961322,25895.0,25894.0,0.00041739]
[1694104939724,2.16266351,25895.0,25894.0,0.00041739]
[1694104939985,0.85309322,25895.0,25888.0,0.22888481]
[1694104940157,0.1511,25895.0,25894.0,0.772379]
[1694104940429,0.1511,25895.0,25893.0,1.544787]
[1694104940625,0.1511,25895.0,25894.0,0.002]
[1694104940626,0.024,25895.0,25894.0,0.002]
[1694104940740,0.024,25895.0,25894.0,0.00239739]
[1694104940945,0.67223253,25895.0,25894.0,0.00239739]
[1694104941401,0.66423253,25895.0,25894.0,0.00239739]
[1694104941642,0.77067925,25895.0,25894.0,0.00239739]
[1694104941837,0.67023253,25895.0,25894.0,0.00239739]
[1694104942084,0.71259253,25895.0,25894.0,0.00039739]
[1694104942319,0.73797946,25895.0,25894.0,0.00039739]
[1694104942738,0.75081946,25895.0,25894.0,0.00039739]
[1694104943177,0.42600015,25895.0,25892.0,0.892127]
[1694104943184,0.03744693,25895.0,25894.0,2.436837]
[1694104943685,0.007,25895.0,25894.0,2.83563732]
[1694104943939,0.0198,25902.0,25896.0,0.06]
[1694104944228,0.0198,25902.0,25901.0,0.1197]
[1694104944475,0.0198,25902.0,25901.0,2.31651]
[1694104944745,0.0198,25902.0,25897.0,1.038483]
[1694104944746,0.55523068,25902.0,25897.0,1.038483]
[1694104944977,0.25404528,25898.0,25897.0,1.038486]
[1694104945224,0.5480306,25901.0,25897.0,1.038486]
[1694104945463,0.5480306,25901.0,25897.0,1.810776]
[1694104945464,0.21550135,25900.0,25897.0,1.810776]
[1694104945707,0.21991078,25899.0,25897.0,1.810776]
[1694104945940,0.38855322,25898.0,25897.0,1.810776]
[1694104946429,0.009,25899.0,25897.0,2.583066]
[1694104946640,0.39755322,25899.0,25897.0,2.583066]
[1694104946854,0.39755322,25899.0,25898.0,0.00039584]
[1694104947068,0.39755322,25899.0,25898.0,2.31717584]
[1694104947312,0.009,25899.0,25898.0,2.43687584]
[1694104947794,0.012,25899.0,25898.0,2.43687584]
[1694104948306,0.009,25899.0,25898.0,2.43687584]
[1694104948514,0.012,25899.0,25898.0,2.43687584]
[1694104948718,0.027,25899.0,25898.0,2.43687584]
[1694104948923,0.024,25899.0,25898.0,2.43687584]
[1694104949132,0.009,25899.0,25898.0,2.43687584]
[1694104949354,0.59102283,25899.0,25898.0,0.00039584]
[1694104949576,0.65012511,25899.0,25898.0,0.00039584]
[1694104949991,0.65600283,25899.0,25898.0,0.00039584]
[1694104950399,0.59102283,25899.0,25898.0,0.00339584]
[1694104950679,0.66680283,25899.0,25898.0,0.00339584]
[1694104950869,0.66788283,25899.0,25898.0,0.00339584]
[1694104951077,0.67160283,25899.0,25898.0,0.00339584]
[1694104951282,0.67148283,25899.0,25898.0,0.00339584]
[1694104951481,0.67154283,25899.0,25898.0,0.00339584]
[1694104951729,0.67142283,25899.0,25898.0,0.00339584]
[1694104951943,0.67148283,25899.0,25898.0,0.00339584]
[1694104952148,0.67064283,25899.0,25898.0,0.00339584]
[1694104952379,0.67100283,25899.0,25898.0,0.00339584]
[1694104952587,0.66824283,25899.0,25898.0,0.00339584]
[1694104952795,0.66866283,25899.0,25898.0,0.00339584]
[1694104953014,0.66848283,25899.0,25898.0,0.00339584]
[1694104953218,0.66986283,25899.0,25898.0,0.00339584]
[1694104953450,0.66848283,25899.0,25898.0,0.00339584]
[1694104953659,0.69827469,25899.0,25898.0,0.00339584]
[1694104953869,0.69809469,25899.0,25898.0,0.00339584]
[1694104954114,0.62150112,25899.0,25898.0,0.00339584]
[1694104954320,0.99154055,25899.0,25898.0,0.00339584]
[1694104954609,0.89956317,25899.0,25898.0,0.00339584]
[1694104954854,1.09038257,25899.0,25898.0,0.00339584]
[1694104955102,1.08972257,25899.0,25898.0,0.00339584]
[1694104955296,1.09086257,25899.0,25898.0,0.00339584]
[1694104955508,1.08876257,25899.0,25898.0,0.00339584]
[1694104955752,1.08882257,25899.0,25898.0,0.00339584]
[1694104956007,1.08870257,25899.0,25898.0,0.00339584]
[1694104956218,1.08768257,25899.0,25898.0,0.00339584]
[1694104956500,0.98514653,25899.0,25898.0,0.00339584]
[1694104956741,0.99168653,25899.0,25898.0,0.00339584]
[1694104956980,1.13732653,25899.0,25898.0,0.00339584]
[1694104957166,1.13744653,25899.0,25898.0,0.00339584]
[1694104957341,1.13450653,25899.0,25898.0,0.00339584]
[1694104957554,1.13498653,25899.0,25898.0,0.00039584]
[1694104957750,1.13036653,25899.0,25898.0,0.00039584]
[1694104957953,1.15844653,25899.0,25898.0,0.00239584]
[1694104958338,1.14230653,25899.0,25898.0,0.00239584]
[1694104958532,1.43327117,25899.0,25898.0,0.00039584]
[1694104958724,1.45301117,25899.0,25898.0,0.002]
[1694104958932,1.46483117,25899.0,25898.0,0.004]
[1694104959144,1.46933117,25899.0,25898.0,0.004]
[1694104959348,1.47161117,25899.0,25898.0,0.004]
[1694104959560,1.46879117,25899.0,25898.0,0.004]
[1694104959772,1.37896295,25899.0,25898.0,0.00439613]
[1694104960010,1.38238295,25899.0,25898.0,0.00439613]
[1694104960222,1.37734295,25899.0,25898.0,0.00439613]
[1694104960436,3.13003177,25899.0,25898.0,0.00439613]
[1694104960642,3.37988063,25899.0,25898.0,0.00439613]
[1694104960888,3.56618689,25899.0,25898.0,0.00439613]
[1694104961073,3.69950689,25899.0,25898.0,0.00439613]
[1694104961321,2.77967689,25899.0,25898.0,0.00439613]
[1694104961535,2.58947063,25899.0,25898.0,0.00439613]
[1694104961742,2.58953063,25899.0,25898.0,0.004]
[1694104961952,2.58887063,25899.0,25898.0,0.004]
[1694104962168,2.58923063,25899.0,25898.0,0.004]
[1694104962374,1.81610063,25899.0,25898.0,0.004]
[1694104962589,1.81256063,25899.0,25898.0,0.004]
[1694104962808,1.81256063,25899.0,25898.0,0.00439632]
[1694104962809,0.58696508,25899.0,25898.0,0.00439632]
[1694104963022,0.65036969,25899.0,25898.0,0.00439632]
[1694104963225,0.65432969,25899.0,25898.0,0.00439632]
[1694104963434,0.65438969,25899.0,25898.0,0.00439632]
[1694104963645,0.65654969,25899.0,25898.0,0.00439632]
[1694104963855,0.65678969,25899.0,25898.0,0.00439632]
[1694104964073,0.65636969,25899.0,25898.0,0.00439632]
[1694104964289,0.66200969,25899.0,25898.0,0.00439632]
[1694104964550,1.10086855,25899.0,25898.0,0.00439632]
[1694104964785,1.10176855,25899.0,25898.0,0.00439632]
[1694104964987,1.11124855,25899.0,25898.0,0.004]
[1694104965260,1.27668262,25899.0,25898.0,0.004]
[1694104965496,1.27662262,25899.0,25898.0,0.004]
[1694104965730,1.27782262,25899.0,25898.0,0.004]
[1694104965967,1.27776262,25899.0,25898.0,0.00439618]
[1694104966175,1.27764262,25899.0,25898.0,0.00439618]
[1694104966451,1.28766262,25899.0,25898.0,0.00439618]
[1694104966682,1.37992095,25899.0,25898.0,0.00439618]
[1694104966916,1.37776095,25899.0,25898.0,0.00439618]
[1694104967114,1.28502262,25899.0,25898.0,0.00439618]
[1694104967382,1.376261,25899.0,25898.0,0.00439618]
[1694104967859,1.381361,25899.0,25898.0,0.00439618]
[1694104968061,1.381181,25899.0,25898.0,0.00439618]
[1694104968294,1.377221,25899.0,25898.0,0.00439618]
[1694104968536,1.376921,25899.0,25898.0,0.00439618]
[1694104968793,1.369841,25899.0,25898.0,0.00439618]
[1694104969059,1.372841,25899.0,25898.0,0.00439618]
[1694104969294,2.83344262,25899.0,25898.0,0.00439618]
[1694104969529,2.83008262,25899.0,25898.0,0.00439618]
[1694104969779,2.06667262,25899.0,25898.0,0.00439618]
[1694104970041,2.06247262,25899.0,25898.0,0.00439618]
[1694104970283,2.06175262,25899.0,25898.0,0.00439618]
[1694104970514,2.06745262,25899.0,25898.0,0.00439618]
[1694104970727,2.06763262,25899.0,25898.0,0.00439618]
[1694104970962,2.06769262,25899.0,25898.0,0.00439618]
[1694104971237,2.84538262,25899.0,25898.0,0.00439618]
[1694104971472,2.84070262,25899.0,25898.0,0.00439618]
[1694104971816,2.82918262,25899.0,25898.0,0.00439618]
[1694104972038,2.83464262,25899.0,25898.0,0.00439618]
[1694104972272,2.83488262,25899.0,25898.0,0.00439618]
[1694104972514,2.83482262,25899.0,25898.0,0.00439618]
[1694104972757,2.83536262,25899.0,25898.0,0.00439618]
[1694104972981,2.83434262,25899.0,25898.0,0.00439618]
[1694104973193,2.83458262,25899.0,25898.0,0.00439618]
[1694104973622,2.83608262,25899.0,25898.0,0.00439618]
[1694104973884,2.83656262,25899.0,25898.0,0.00439618]
[1694104974075,3.25304262,25899.0,25898.0,0.00439618]
[1694104974220,3.24950262,25899.0,25898.0,0.00439618]
[1694104974392,3.25124262,25899.0,25898.0,0.00439618]
[1694104974620,4.00779262,25899.0,25898.0,0.00439618]
[1694104974916,4.21871888,25899.0,25898.0,0.00439618]
[1694104975154,4.22063888,25899.0,25898.0,0.00439618]
[1694104975413,4.35311888,25899.0,25898.0,0.00439618]
[1694104975602,4.35383888,25899.0,25898.0,0.00439618]
[1694104975805,4.35551888,25899.0,25898.0,0.00439618]
[1694104975979,3.56924888,25899.0,25898.0,0.00439618]
[1694104976180,3.71246888,25899.0,25898.0,0.00439618]
[1694104976399,3.71186888,25899.0,25898.0,0.00439618]
[1694104976665,3.71474888,25899.0,25898.0,0.00439618]
[1694104976861,3.70994888,25899.0,25898.0,0.00439618]
[1694104977096,3.70982888,25899.0,25898.0,0.00439618]
[1694104977326,3.71114888,25899.0,25898.0,0.00439618]
[1694104977467,3.71078888,25899.0,25898.0,0.00439618]
[1694104977701,3.70958888,25899.0,25898.0,0.00439618]
[1694104977925,3.41103207,25899.0,25898.0,0.00439618]
[1694104978110,3.40887207,25899.0,25898.0,0.00439618]
[1694104978332,3.40983207,25899.0,25898.0,0.00439618]
[1694104978560,3.40623207,25899.0,25898.0,0.00439618]
[1694104978760,3.40827207,25899.0,25898.0,0.00439618]
[1694104978994,3.40659207,25899.0,25898.0,0.00439618]
[1694104979198,3.26569002,25899.0,25898.0,0.00439618]
[1694104979388,3.26593002,25899.0,25898.0,0.00439618]
[1694104979877,3.26377002,25899.0,25898.0,0.00439618]
[1694104980099,3.26365002,25899.0,25898.0,0.00439618]
[1694104980273,3.26221002,25899.0,25898.0,0.00439618]
[1694104980506,3.26389002,25899.0,25898.0,0.00439618]
[1694104980908,3.13111002,25899.0,25898.0,0.00439618]
[1694104981124,3.26113002,25899.0,25898.0,0.00439618]
[1694104981342,3.13063002,25899.0,25898.0,0.00439618]
[1694104981598,3.13045002,25899.0,25898.0,0.00439618]
[1694104981898,3.12049002,25899.0,25898.0,0.00439618]
[1694104982147,3.11533002,25899.0,25898.0,0.00439618]
[1694104982411,0.54500508,25899.0,25898.0,1.66861618]
[1694104982653,0.07479186,25899.0,25898.0,2.44087618]
[1694104983847,0.021,25899.0,25898.0,2.43887618]
[1694104984086,0.009,25899.0,25898.0,2.43687618]
[1694104984572,0.015,25899.0,25898.0,2.43887618]
[1694104985047,0.0411183,25899.0,25898.0,2.43887618]
[1694104985304,0.039,25899.0,25898.0,2.44087618]
[1694104985561,0.009,25899.0,25898.0,2.43687618]
[1694104986055,0.0371183,25899.0,25898.0,2.46987618]
[1694104986310,0.011,25899.0,25898.0,2.46987618]
[1694104987668,0.0371183,25899.0,25898.0,2.46987618]
[1694104989299,0.011,25899.0,25898.0,2.46987618]
[1694104989535,0.011,25899.0,25898.0,4.0184094]
[1694104990245,0.011,25899.0,25898.0,4.7184094]
[1694104990986,0.009,25899.0,25898.0,4.6984094]
[1694104991233,0.009,25899.0,25898.0,4.30985618]
[1694104991989,0.009,25899.0,25898.0,4.29685618]
[1694104992237,0.009,25899.0,25898.0,4.32185618]
[1694104992473,0.009,25899.0,25898.0,3.50187618]
[1694104992710,0.011,25899.0,25898.0,3.46187618]
[1694104992960,0.03511526,25899.0,25898.0,0.84509618]
[1694104993241,0.03511526,25899.0,25898.0,0.72539618]
[1694104993242,0.42366848,25899.0,25898.0,0.72539618]
[1694104993481,0.42366848,25899.0,25898.0,0.75039618]
[1694104993482,0.39955322,25899.0,25898.0,0.75039618]
[1694104993919,0.65229312,25899.0,25898.0,0.75039618]
[1694104994146,3.50328763,25899.0,25898.0,0.75039618]
[1694104994368,4.07136325,25899.0,25898.0,0.75039618]
[1694104994590,3.92784325,25899.0,25898.0,0.75039618]
[1694104994851,3.00433763,25899.0,25898.0,0.75]
[1694104995096,3.00187763,25899.0,25898.0,0.05]
[1694104995330,3.00445763,25899.0,25898.0,0.05]
[1694104995585,3.00505763,25899.0,25898.0,0.05]
[1694104995836,3.00391763,25899.0,25898.0,0.05]
[1694104996086,1.45723763,25899.0,25898.0,0.05039572]
[1694104996346,1.44787763,25899.0,25898.0,0.05039572]